bitfinex-derivatives/quotes_SOLF0:USTF0_20251211
["timestamp","ask_amount","ask_price","bid_price","bid_amount"]
[1765475146945,64.24,132.41,132.38,3.30997059]
[1765475147252,64.24,132.41,132.39,3.26]
[1765475147844,64.24,132.41,132.38,0.04997059]
[1765475148045,3.20016683,132.4,132.38,3.30997059]
[1765475149256,64.24,132.41,132.38,3.30997059]
[1765475150249,64.24,132.41,132.39,6.7974]
[1765475150460,64.24,132.41,132.4,3.28]
[1765475150865,64.24,132.41,132.38,0.04997059]
[1765475151155,3.20016683,132.4,132.38,0.04997059]
[1765475151360,3.20016683,132.39,132.38,0.04997059]
[1765475152669,3.20016683,132.39,132.38,3.32997059]
[1765475152868,6.7971,132.4,132.38,3.32997059]
[1765475153068,67.44016683,132.41,132.38,3.32997059]
[1765475154469,64.24,132.41,132.38,3.32997059]
[1765475154671,64.24,132.41,132.4,3.28]
[1765475155160,3.20016683,132.43,132.4,3.28]
[1765475156173,3.20016683,132.41,132.38,3.32997059]
[1765475156866,3.20016683,132.41,132.39,3.28]
[1765475157066,3.20016683,132.44,132.39,3.28]
[1765475157363,3.20016683,132.44,132.4,3.33434316]
[1765475157568,3.20016683,132.44,132.4,10.13124316]
[1765475158771,3.20016683,132.44,132.4,3.33434316]
[1765475159862,3.20016683,132.44,132.4,10.13104316]
[1765475160266,3.20016683,132.44,132.4,3.33434316]
[1765475160467,3.20016683,132.44,132.42,6.7957]
[1765475160672,64.22,132.45,132.42,10.0757]
[1765475161071,64.22,132.45,132.42,3.28]
[1765475161472,64.22,132.45,132.41,3.28]
[1765475162374,64.22,132.45,132.43,3.28]
[1765475162675,64.22,132.45,132.43,3.33495073]
[1765475163269,64.22,132.45,132.44,3.28]
[1765475163473,64.22,132.45,132.43,3.33495073]
[1765475166284,64.22,132.45,132.43,0.05495073]
[1765475166783,71.0145,132.45,132.43,0.05495073]
[1765475170178,76.00182734,132.45,132.43,0.05495073]
[1765475170971,69.20732734,132.45,132.43,0.05495073]
[1765475171777,6.793,132.48,132.43,0.05495073]
[1765475171983,69.18732734,132.47,132.44,0.05357908]
[1765475173479,4.98732734,132.49,132.44,3.20357908]
[1765475173675,64.2,132.48,132.44,3.20357908]
[1765475174078,64.2,132.48,132.45,6.7944]
[1765475174276,64.2,132.48,132.44,0.05357908]
[1765475174576,4.98732734,132.47,132.44,0.05357908]
[1765475180590,11.78082734,132.47,132.44,0.05357908]
[1765475183091,6.7939,132.46,132.44,0.05357908]
[1765475186595,11.78172734,132.45,132.44,0.05357908]
[1765475187784,4.98732734,132.47,132.44,3.24357908]
[1765475187988,64.2,132.48,132.44,3.24357908]
[1765475188897,6.7934,132.47,132.44,3.24357908]
[1765475189292,9.1474977,132.51,132.44,3.24357908]
[1765475189598,4.16017036,132.51,132.47,3.19]
[1765475189795,4.16017036,132.51,132.44,105.75027908]
[1765475189796,4.16017036,132.51,132.49,3.19]
[1765475191595,10.95157036,132.51,132.48,0.04768101]
[1765475191797,9.1474977,132.51,132.48,0.04768101]
[1765475192496,6.792,132.5,132.48,0.04768101]
[1765475192693,6.792,132.5,132.48,3.23768101]
[1765475196207,6.792,132.5,132.48,0.04768101]
[1765475197707,4.16017036,132.51,132.48,3.23768101]
[1765475198995,4.16017036,132.51,132.49,3.19]
[1765475200196,4.16017036,132.51,132.48,3.23768101]
[1765475200396,4.16017036,132.51,132.48,0.04768101]
[1765475200596,4.16017036,132.51,132.48,3.23768101]
[1765475207310,4.16017036,132.51,132.48,0.04768101]
[1765475207511,9.1474977,132.51,132.48,0.04768101]
[1765475208305,4.16017036,132.51,132.48,3.23768101]
[1765475208907,4.16017036,132.51,132.48,0.04768101]
[1765475210007,9.1474977,132.51,132.48,0.04768101]
[1765475210607,6.7921,132.5,132.48,0.04768101]
[1765475211912,4.16017036,132.51,132.48,3.12768101]
[1765475212418,4.16017036,132.51,132.48,0.04768101]
[1765475213619,6.7919,132.5,132.48,0.04768101]
[1765475215019,4.16017036,132.51,132.48,0.04768101]
[1765475217029,4.16017036,132.51,132.48,6.84038101]
[1765475217234,4.16017036,132.51,132.48,9.92038101]
[1765475218333,4.16017036,132.51,132.48,6.84038101]
[1765475219134,4.16017036,132.51,132.49,6.7923]
[1765475219436,4.16017036,132.51,132.48,3.12768101]
[1765475220135,4.16017036,132.51,132.48,9.92048101]
[1765475220828,4.16017036,132.51,132.48,3.12768101]
[1765475222324,4.16017036,132.51,132.49,3.08]
[1765475222531,4.16017036,132.51,132.48,9.92048101]
[1765475222732,7.34901917,132.51,132.48,9.92048101]
[1765475222934,7.34901917,132.51,132.49,3.08]
[1765475223641,7.34901917,132.51,132.48,9.92048101]
[1765475224237,7.34901917,132.51,132.48,3.12768101]
[1765475224441,3.18884881,132.49,132.48,0.04768101]
[1765475226239,67.34884881,132.49,132.43,3.08]
[1765475226436,64.16,132.49,132.43,3.08]
[1765475226636,64.16,132.5,132.47,3.08]
[1765475226841,67.34884881,132.5,132.47,3.08]
[1765475227437,3.18884881,132.48,132.43,3.08]
[1765475227643,0.04768101,132.47,132.44,3.13479743]
[1765475229846,0.04768101,132.47,132.44,0.05479743]
[1765475229847,3.18884881,132.46,132.44,0.05479743]
[1765475230048,64.16,132.45,132.39,3.08]
[1765475230250,3.18884881,132.43,132.39,3.08]
[1765475230546,67.34884881,132.45,132.39,3.08]
[1765475231139,0.05816702,132.43,132.42,3.08]
[1765475231543,0.05816702,132.43,132.41,3.12842237]
[1765475232950,3.24701583,132.43,132.41,0.04842237]
[1765475234442,6.85406702,132.43,132.41,3.31842237]
[1765475234653,0.05816702,132.43,132.41,0.04842237]
[1765475236146,0.05816702,132.43,132.41,3.31842237]
[1765475237346,0.05816702,132.43,132.41,0.04842237]
[1765475237547,0.05816702,132.43,132.41,3.31842237]
[1765475242358,0.05816702,132.43,132.41,0.04842237]
[1765475242853,0.05816702,132.43,132.41,3.13842237]
[1765475243361,0.05816702,132.43,132.42,6.27884881]
[1765475244849,4.16017036,132.51,132.44,3.09]
[1765475245056,7.34901917,132.51,132.45,3.09]
[1765475245260,3.18884881,132.49,132.45,3.09]
[1765475245450,67.36884881,132.49,132.45,3.09]
[1765475245863,0.04431142,132.48,132.46,0.05130489]
[1765475246960,6.7935,132.47,132.46,0.05130489]
[1765475248057,0.04431142,132.48,132.46,0.05130489]
[1765475248966,0.04431142,132.48,132.46,3.14130489]
[1765475249861,0.04431142,132.48,132.47,3.09]
[1765475250654,0.04431142,132.48,132.47,9.8834]
[1765475250859,4.16017036,132.51,132.46,0.05130489]
[1765475250860,4.16017036,132.51,132.48,3.09]
[1765475251565,7.34901917,132.51,132.48,3.09]
[1765475253765,7.34901917,132.51,132.48,9.8828]
[1765475254169,7.34901917,132.51,132.48,3.09]
[1765475256264,3.18884881,132.49,132.46,6.84520489]
[1765475256464,3.18884881,132.49,132.47,3.09]
[1765475256770,67.36884881,132.49,132.46,0.05130489]
[1765475257067,74.16124881,132.49,132.46,0.05130489]
[1765475259768,6.793,132.48,132.46,0.05130489]
[1765475260272,3.18884881,132.47,132.46,0.05130489]
[1765475260466,9.98224881,132.47,132.46,0.05130489]
[1765475260871,70.9729,132.49,132.46,0.05130489]
[1765475261071,3.18884881,132.48,132.46,0.05130489]
[1765475261365,3.18884881,132.48,132.4,3.09]
[1765475261571,3.18884881,132.45,132.4,3.09]
[1765475262169,3.18884881,132.41,132.38,3.09]
[1765475262670,0.05130489,132.41,132.39,3.18884881]
[1765475262877,0.05130489,132.41,132.4,3.09]
[1765475264771,0.00130489,132.41,132.4,3.09]
[1765475265075,74.16284881,132.46,132.41,3.09]
[1765475265278,6.7946,132.45,132.41,3.09]
[1765475265467,3.18884881,132.44,132.41,3.09]
[1765475265875,3.18884881,132.44,132.41,3.14499447]
[1765475267076,3.18884881,132.44,132.42,3.09]
[1765475270179,3.18884881,132.44,132.42,9.8859]
[1765475273674,3.18884881,132.44,132.42,10.1359]
[1765475273980,3.18884881,132.44,132.42,3.34]
[1765475275383,64.18,132.46,132.42,3.34]
[1765475275579,3.18884881,132.45,132.42,3.34]
[1765475276582,9.98324881,132.45,132.42,3.34]
[1765475276885,3.18884881,132.45,132.42,3.34]
[1765475278790,74.16304881,132.46,132.43,3.34]
[1765475280482,67.36884881,132.46,132.43,3.34]
[1765475280987,67.36884881,132.46,132.44,3.34]
[1765475281187,67.36884881,132.46,132.44,3.38956125]
[1765475281584,67.36884881,132.46,132.44,0.04956125]
[1765475281790,67.36884881,132.46,132.38,3.34]
[1765475281976,3.18884881,132.42,132.38,3.34]
[1765475282692,4.98907197,132.44,132.38,3.34]
[1765475282893,0.04956125,132.41,132.39,3.39619282]
[1765475284188,0.04956125,132.41,132.39,10.19369282]
[1765475284390,0.04956125,132.41,132.4,3.34]
[1765475285290,0.04956125,132.41,132.39,0.05619282]
[1765475285494,0.04956125,132.41,132.39,3.39619282]
[1765475285691,0.04956125,132.41,132.39,0.05619282]
[1765475286085,64.24956125,132.41,132.39,0.05619282]
[1765475286497,4.98907197,132.4,132.39,0.05619282]
[1765475286694,4.98907197,132.4,132.34,3.34]
[1765475286994,4.98907197,132.39,132.35,3.34]
[1765475287291,64.2,132.39,132.35,3.34]
[1765475287497,64.2,132.39,132.36,3.34]
[1765475287686,64.25596337,132.39,132.36,3.38882633]
[1765475288385,64.25596337,132.39,132.37,3.34]
[1765475288997,64.25596337,132.39,132.37,10.1384]
[1765475289192,64.25596337,132.39,132.38,3.34]
[1765475289496,64.25596337,132.39,132.37,10.1384]
[1765475290193,0.05596337,132.39,132.37,6.7984]
[1765475290383,0.05596337,132.39,132.37,10.1384]
[1765475290581,0.05596337,132.39,132.38,3.34]
[1765475291789,0.05596337,132.39,132.36,0.04882633]
[1765475291988,0.05596337,132.39,132.36,3.38882633]
[1765475292996,0.05596337,132.39,132.36,0.04882633]
[1765475293500,11.78717197,132.38,132.36,0.04882633]
[1765475294497,110.74027197,132.38,132.31,3.39]
[1765475294804,4.98907197,132.35,132.31,3.39]
[1765475294992,69.18907197,132.35,132.31,3.39]
[1765475295388,64.2,132.35,132.31,3.39]
[1765475295694,0.0574607,132.34,132.32,0.04978039]
[1765475300202,6.8576607,132.34,132.32,3.14978039]
[1765475300401,6.8576607,132.34,132.32,0.04978039]
[1765475300604,0.0574607,132.34,132.32,3.14978039]
[1765475306902,4.98907197,132.41,132.33,3.1]
[1765475307202,64.22,132.41,132.34,3.1]
[1765475307408,64.22,132.41,132.37,3.1]
[1765475307798,0.04786917,132.4,132.38,0.05303179]
[1765475307995,0.04786917,132.4,132.38,3.15303179]
[1765475309911,0.04786917,132.4,132.38,9.95093179]
[1765475310110,0.04786917,132.4,132.38,0.05303179]
[1765475310302,0.04786917,132.4,132.38,3.15303179]
[1765475312005,0.04786917,132.4,132.39,3.1]
[1765475315914,0.04786917,132.4,132.38,0.05303179]
[1765475316813,0.04786917,132.4,132.35,3.1]
[1765475317007,4.98907197,132.39,132.35,3.1]
[1765475317203,4.98907197,132.37,132.28,124.15896646]
[1765475317408,4.98907197,132.35,132.29,3.1]
[1765475317614,64.22,132.34,132.29,3.1]
[1765475317817,0.05749654,132.33,132.32,3.1]
[1765475318319,0.05749654,132.33,132.32,9.9011]
[1765475318707,4.98907197,132.39,132.32,9.9011]
[1765475319014,69.20907197,132.39,132.33,3.1]
[1765475319918,0.05642688,132.37,132.35,6.85158922]
[1765475320220,0.05642688,132.37,132.35,9.95158922]
[1765475320522,0.05642688,132.37,132.36,3.1]
[1765475323728,64.22,132.39,132.38,3.1]
[1765475324631,64.22,132.39,132.37,9.8985]
[1765475324932,64.22,132.39,132.37,3.1]
[1765475331733,69.20907197,132.39,132.35,0.05208922]
[1765475332439,6.7981,132.38,132.35,0.05208922]
[1765475332637,69.20907197,132.39,132.35,3.43208922]
[1765475333337,76.00667197,132.39,132.35,0.05208922]
[1765475333841,4.98907197,132.37,132.35,0.05208922]
[1765475334034,5.02530004,132.37,132.35,0.05208922]
[1765475334943,11.82390004,132.37,132.35,0.05208922]
[1765475337035,6.799,132.36,132.35,0.05208922]
[1765475337434,10.01437201,132.37,132.31,6.8011]
[1765475337639,4.98907197,132.34,132.31,6.8011]
[1765475337940,64.22,132.33,132.31,10.1811]
[1765475338439,64.27334098,132.33,132.31,0.05440913]
[1765475338746,4.98907197,132.32,132.31,0.05440913]
[1765475340730,64.27334098,132.33,132.31,0.05440913]
[1765475341946,64.27334098,132.33,132.31,3.43440913]
[1765475343033,3.19694205,132.32,132.31,0.05440913]
[1765475343237,64.27334098,132.33,132.31,0.05440913]
[1765475343440,3.19694205,132.32,132.31,0.05440913]
[1765475344039,3.19694205,132.32,132.31,3.43440913]
[1765475344240,64.27334098,132.33,132.31,3.43440913]
[1765475344438,0.05334098,132.33,132.31,3.43440913]
[1765475344640,0.05334098,132.33,132.31,0.05440913]
[1765475345345,6.85404098,132.33,132.31,0.05440913]
[1765475346442,10.05098303,132.33,132.31,0.05440913]
[1765475346739,6.85404098,132.33,132.31,0.05440913]
[1765475346938,3.19694205,132.32,132.31,0.05440913]
[1765475347641,108.99614205,132.32,132.25,3.38]
[1765475347836,3.19694205,132.28,132.25,3.38]
[1765475348531,3.25166227,132.28,132.25,3.43267382]
[1765475351954,3.25166227,132.28,132.25,10.23737382]
[1765475352145,3.25166227,132.28,132.26,3.38]
[1765475352753,0.05472022,132.28,132.26,3.38]
[1765475352943,3.25166227,132.28,132.26,3.38]
[1765475354942,3.25166227,132.28,132.25,0.05267382]
[1765475355147,3.25166227,132.28,132.25,3.42267382]
[1765475355650,3.25166227,132.28,132.25,0.05267382]
[1765475355651,3.19694205,132.26,132.25,0.05267382]
[1765475357856,3.19694205,132.26,132.2,3.37]
[1765475358057,3.19694205,132.23,132.2,3.37]
[1765475358357,64.26,132.25,132.21,10.1767]
[1765475358656,3.19694205,132.24,132.21,10.1767]
[1765475358848,3.25414388,132.24,132.22,0.04955751]
[1765475360456,0.05720183,132.24,132.22,0.04955751]
[1765475360649,3.19694205,132.23,132.22,0.04955751]
[1765475361760,3.19694205,132.23,132.18,3.1]
[1765475362060,3.19694205,132.21,132.18,9.9083]
[1765475362258,0.05720183,132.24,132.15,3.1]
[1765475362259,3.19694205,132.19,132.15,3.1]
[1765475362652,0.04828384,132.18,132.16,0.0577323]
[1765475362848,0.04828384,132.18,132.16,3.1577323]
[1765475363254,0.04828384,132.18,132.17,6.8088]
[1765475363455,0.04828384,132.18,132.17,9.9088]
[1765475363959,0.04828384,132.18,132.17,3.1]
[1765475365760,0.04828384,132.18,132.16,0.0577323]
[1765475366056,0.04828384,132.18,132.16,3.1577323]
[1765475367459,67.47694205,132.22,132.17,3.1]
[1765475368362,0.05196229,132.21,132.18,3.15594464]
[1765475370559,6.85886229,132.21,132.18,3.15594464]
[1765475371162,0.05196229,132.21,132.18,3.15594464]
[1765475371562,22.65,132.25,132.18,3.15594464]
[1765475371756,7.03159399,132.37,132.18,3.15594464]
[1765475371757,0.29,132.33,132.25,3.1]
[1765475371953,0.29,132.33,132.27,3.1]
[1765475372459,0.29,132.33,132.28,3.1]
[1765475372650,0.05791337,132.32,132.29,3.15699917]
[1765475373960,3.25485542,132.32,132.29,3.15699917]
[1765475374461,3.15,132.29,132.23,3.1]
[1765475374664,3.19694205,132.25,132.23,3.1]
[1765475375458,3.24947077,132.25,132.23,0.04774519]
[1765475375655,0.05252872,132.25,132.23,0.04774519]
[1765475375860,3.24947077,132.25,132.23,3.14774519]
[1765475376062,3.24947077,132.25,132.23,0.04774519]
[1765475376259,6.39947077,132.25,132.23,0.04774519]
[1765475376768,3.15,132.24,132.23,0.04774519]
[1765475377263,3.15,132.24,132.18,105.9006]
[1765475377264,3.15,132.24,132.18,6.8081]
[1765475378264,0.05163027,132.22,132.2,0.04802231]
[1765475378766,0.05163027,132.22,132.2,3.14802231]
[1765475379667,0.05163027,132.22,132.2,0.04802231]
[1765475379968,0.05163027,132.22,132.2,3.14802231]
[1765475380567,3.20163027,132.22,132.2,0.04802231]
[1765475386565,3.20163027,132.22,132.2,3.14802231]
[1765475386566,0.05163027,132.22,132.2,3.14802231]
[1765475387873,0.05163027,132.22,132.2,9.95522231]
[1765475388184,0.05163027,132.22,132.21,3.1]
[1765475396266,0.05163027,132.22,132.21,16.92266352]
[1765475396466,0.05163027,132.22,132.21,3.1]
[1765475397175,0.05163027,132.22,132.21,9.9068]
[1765475397375,3.40163027,132.22,132.2,13.87068583]
[1765475397569,0.05163027,132.22,132.2,3.26802231]
[1765475397770,0.05163027,132.22,132.2,0.04802231]
[1765475397771,3.40163027,132.22,132.2,0.04802231]
[1765475398069,3.40163027,132.22,132.17,17.04266352]
[1765475398275,3.35,132.22,132.17,3.22]
[1765475398577,3.35,132.21,132.17,3.22]
[1765475398775,3.20423498,132.19,132.17,3.22]
[1765475399075,3.26166176,132.19,132.17,3.27281427]
[1765475400676,0.05742678,132.19,132.17,3.27281427]
[1765475400872,0.05742678,132.19,132.17,10.08161427]
[1765475401178,3.40742678,132.19,132.17,0.05281427]
[1765475401771,0.05742678,132.19,132.17,3.27281427]
[1765475402165,3.40742678,132.19,132.17,0.05281427]
[1765475402876,0.05742678,132.19,132.17,0.05281427]
[1765475403065,0.05742678,132.19,132.17,10.08121427]
[1765475403670,0.05742678,132.19,132.17,3.27281427]
[1765475403879,3.40742678,132.19,132.17,0.05281427]
[1765475404181,0.05742678,132.19,132.17,3.27281427]
[1765475404568,3.40742678,132.19,132.17,0.05281427]
[1765475405172,67.65,132.18,132.17,0.05281427]
[1765475405473,3.35,132.16,132.12,17.04266352]
[1765475405783,3.35,132.16,132.11,3.22]
[1765475406475,3.35,132.16,132.07,105.9931]
[1765475406476,0.0481396,132.15,132.12,3.27116754]
[1765475406683,3.3981396,132.15,132.12,3.27116754]
[1765475407477,3.3981396,132.15,132.08,3.22]
[1765475407682,3.35,132.15,132.08,3.22]
[1765475408584,3.35,132.12,132.1,0.05624682]
[1765475408782,67.67,132.12,132.1,0.05624682]
[1765475412183,3.35,132.11,132.1,0.05624682]
[1765475413591,3.35,132.11,132.05,3.22]
[1765475413885,3.35,132.11,132.02,23.07370579]
[1765475414091,3.09,132.07,132.01,3.35]
[1765475414285,64.34,132.07,132.02,3.35]
[1765475414491,0.05089185,132.06,132.03,3.40528861]
[1765475414695,0.05089185,132.06,132.05,3.35]
[1765475417484,0.05089185,132.06,132.03,3.40528861]
[1765475417684,3.14089185,132.06,132.03,3.40528861]
[1765475418289,9.95549185,132.06,132.03,3.40528861]
[1765475418791,0.05089185,132.06,132.03,3.40528861]
[1765475419180,3.14089185,132.06,132.03,0.05528861]
[1765475420794,0.05089185,132.06,132.03,3.28528861]
[1765475421988,0.05089185,132.06,132.03,10.10128861]
[1765475422193,0.05089185,132.06,132.04,3.23]
[1765475423598,0.05089185,132.06,132.03,3.28528861]
[1765475424996,3.09,132.05,132.03,0.05528861]
[1765475426094,9.9052,132.05,132.03,0.05528861]
[1765475426295,8.10694629,132.04,131.96,1.31800708]
[1765475426502,8.10694629,132.04,131.97,3.23]
[1765475426503,3.09,132.03,131.97,3.23]
[1765475426692,64.36,132.02,131.99,3.23]
[1765475427407,3.09,132.01,131.99,0.05013446]
[1765475428297,3.09,132.0,131.99,0.05013446]
[1765475428601,3.09,132.0,131.94,6.8203]
[1765475428792,3.09,131.99,131.95,3.23]
[1765475429195,3.09,131.99,131.95,10.0501]
[1765475429393,67.45,132.02,131.96,3.23]
[1765475429696,0.05201278,132.0,131.98,3.28781672]
[1765475430297,0.05201278,132.0,131.98,0.05781672]
[1765475430902,0.05201278,132.0,131.98,3.28781672]
[1765475431104,0.05201278,132.0,131.99,3.23]
[1765475433495,0.05201278,132.0,131.98,3.28781672]
[1765475435103,3.14201278,132.0,131.98,0.05781672]
[1765475436012,9.95971278,132.0,131.98,0.05781672]
[1765475436312,3.09,131.99,131.98,0.05781672]
[1765475437596,0.05201278,132.0,131.98,0.05781672]
[1765475437798,3.14201278,132.0,131.98,0.05781672]
[1765475438706,0.05201278,132.0,131.98,3.28781672]
[1765475439307,0.05201278,132.0,131.98,10.10631672]
[1765475440110,0.05201278,132.0,131.99,10.0481]
[1765475444420,3.09,132.1,132.03,3.23]
[1765475444713,67.49,132.1,132.03,3.23]
[1765475444909,9.9034,132.09,132.03,3.23]
[1765475445107,3.09,132.08,132.03,3.23]
[1765475445312,0.05621951,132.07,132.04,0.05656911]
[1765475445512,3.09,132.06,132.04,0.05656911]
[1765475447128,3.09,132.04,131.98,3.23]
[1765475447522,3.09,132.03,131.98,3.23]
[1765475448230,0.05384182,132.02,131.99,3.28513605]
[1765475448411,3.14384182,132.02,131.99,3.28513605]
[1765475451124,0.05384182,132.02,131.99,3.28513605]
[1765475452621,0.05384182,132.02,131.99,10.10313605]
[1765475452818,0.05384182,132.02,132.0,3.19]
[1765475453023,74.35428287,132.05,132.0,3.19]
[1765475453230,3.34,132.04,132.0,3.19]
[1765475453929,0.05441547,132.03,132.0,3.19]
[1765475458429,0.05441547,132.03,132.01,3.19]
[1765475459531,3.39441547,132.03,131.99,3.24513605]
[1765475460528,3.34,132.01,131.99,0.05513605]
[1765475460830,67.74,132.0,131.93,3.19]
[1765475461223,6.8187,131.98,131.95,3.19]
[1765475461422,64.4,132.0,131.95,3.19]
[1765475461627,10.157,132.02,131.98,3.19]
[1765475461936,64.4,132.0,131.99,0.05248456]
[1765475463836,67.74,132.0,131.99,0.05248456]
[1765475467828,6.8188,131.98,131.92,6.8212]
[1765475468137,3.34,132.14,132.06,3.19]
[1765475468435,3.34,132.17,132.11,3.19]
[1765475468733,3.34,132.21,132.15,3.20512744]
[1765475469029,64.4,132.21,132.18,3.19]
[1765475469229,0.05153135,132.19,132.18,3.19]
[1765475471424,64.4,132.21,132.18,3.19]
[1765475471425,19.08512434,132.21,132.18,3.19]
[1765475471627,3.34,132.25,132.18,3.19]
[1765475471840,64.4,132.26,132.19,3.19]
[1765475472021,3.34,132.28,132.2,3.19]
[1765475472225,3.34,132.31,132.21,3.19]
[1765475472427,67.72,132.3,132.29,1.83264422]
[1765475472622,64.38,132.3,132.28,0.04893669]
[1765475472832,64.43507907,132.3,132.28,0.04893669]
[1765475473027,64.43507907,132.3,132.28,3.23893669]
[1765475473227,0.05507907,132.3,132.28,3.23893669]
[1765475477638,71.96424815,132.4,132.31,3.36]
[1765475477838,75.23424815,132.4,132.39,1.80940234]
[1765475478030,75.23424815,132.4,132.32,3.36]
[1765475478430,75.23424815,132.4,132.33,3.36]
[1765475478636,0.05018308,132.37,132.36,3.36]
[1765475479135,3.18018308,132.37,132.35,0.05168965]
[1765475480033,3.13,132.36,132.32,3.21]
[1765475480228,3.13,132.36,132.29,3.21]
[1765475481040,0.04885477,132.34,132.31,3.26795858]
[1765475485934,0.04885477,132.34,132.31,109.07095858]
[1765475486135,67.41,132.42,132.33,3.21]
[1765475486535,67.41,132.42,132.35,3.21]
[1765475486931,3.13,132.41,132.35,3.21]
[1765475487545,0.04957551,132.39,132.37,0.05640656]
[1765475491147,3.17957551,132.39,132.37,0.05640656]
[1765475492450,9.9282,132.38,132.32,3.21]
[1765475492648,3.13,132.36,132.32,3.21]
[1765475493451,0.05373627,132.35,132.33,0.05000935]
[1765475495639,3.13,132.34,132.33,0.05000935]
[1765475496452,9.98353627,132.35,132.33,0.05000935]
[1765475497147,0.05373627,132.35,132.33,3.26000935]
[1765475497340,3.18373627,132.35,132.33,0.05000935]
[1765475497538,10.75424815,132.34,132.33,0.05000935]
[1765475498238,3.13,132.33,132.27,3.21]
[1765475499243,3.17804534,132.31,132.29,0.05660406]
[1765475499439,67.41804534,132.31,132.29,0.05660406]
[1765475499640,81.84409349,132.31,132.29,0.05660406]
[1765475501650,64.28804534,132.31,132.29,3.26660406]
[1765475502355,0.04804534,132.31,132.3,3.21]
[1765475511663,0.04804534,132.31,132.29,0.05660406]
[1765475511959,0.04804534,132.31,132.17,3.3]
[1765475511960,3.18,132.25,132.17,3.3]
[1765475512158,64.26,132.25,132.21,10.1067]
[1765475512555,67.44,132.25,132.21,3.3]
[1765475513059,0.05779744,132.24,132.22,0.05662449]
[1765475513257,3.23779744,132.24,132.22,0.05662449]
[1765475513649,3.18,132.22,132.18,3.3]
[1765475514557,0.05152596,132.21,132.18,3.3]
[1765475515463,3.23152596,132.21,132.18,3.3]
[1765475516561,3.18,132.2,132.14,10.11]
[1765475516855,0.05402711,132.18,132.15,3.3]
[1765475520065,3.23402711,132.18,132.13,3.3]
[1765475520456,9.9891,132.17,132.13,3.3]
[1765475521154,3.18,132.16,132.13,3.3]
[1765475521354,0.05402711,132.18,132.13,3.3]
[1765475522166,0.05402711,132.18,132.12,105.9514]
[1765475522167,0.05402711,132.18,132.15,3.3]
[1765475522866,3.23402711,132.18,132.12,3.3]
[1765475524362,3.23402711,132.18,132.14,3.3]
[1765475524564,0.05740924,132.17,132.14,3.3]
[1765475527170,0.05740924,132.17,132.16,3.3]
[1765475528467,3.23740924,132.17,132.11,3.3]
[1765475529377,3.23740924,132.17,132.11,10.1115]
[1765475529671,3.23740924,132.17,132.11,3.3]
[1765475530171,3.23740924,132.17,132.12,6.8113]
[1765475530371,3.22783283,132.16,132.09,3.3]
[1765475530764,3.18,132.15,132.11,10.1118]
[1765475530960,0.05096839,132.14,132.12,3.3]
[1765475531165,0.05009776,132.14,132.12,3.3]
[1765475531874,0.05009776,132.14,132.12,10.1113]
[1765475532974,0.05009776,132.14,132.1,6.8121]
[1765475533179,3.23009776,132.14,132.08,3.3]
[1765475534866,3.23009776,132.14,132.1,9.9623]
[1765475535778,0.05009776,132.14,132.11,3.15]
[1765475537872,0.05009776,132.14,132.11,9.9617]
[1765475538180,0.05009776,132.14,132.12,3.15]
[1765475540277,0.05009776,132.14,132.12,9.9613]
[1765475540469,0.05009776,132.14,132.13,3.3]
[1765475540974,3.3,132.18,132.14,3.3]
[1765475541882,3.3,132.18,132.14,10.1103]
[1765475542182,0.05232678,132.17,132.15,0.05675929]
[1765475543182,0.05232678,132.17,132.15,3.35675929]
[1765475545586,3.35232678,132.17,132.15,0.05675929]
[1765475546785,10.1093,132.16,132.15,0.05675929]
[1765475547176,0.05232678,132.17,132.15,0.05675929]
[1765475547379,0.05232678,132.17,132.15,3.35675929]
[1765475554984,0.05232678,132.17,132.16,10.1093]
[1765475555391,0.05232678,132.17,132.16,3.3]
[1765475555980,0.05232678,132.17,132.15,3.35675929]
[1765475556187,3.35232678,132.17,132.15,0.05675929]
[1765475556588,10.16132678,132.17,132.15,0.05675929]
[1765475558490,3.3,132.16,132.15,0.05675929]
[1765475558691,10.1093,132.16,132.15,0.05675929]